bitfinex/quotes_BTCUSD_20250508
["timestamp","ask_amount","ask_price","bid_price","bid_amount"]
[1746713067353,0.23541585,99452.0,99451.0,0.36031872]
[1746713067564,0.23290203,99452.0,99451.0,0.34]
[1746713067765,0.23290203,99452.0,99451.0,0.39396626]
[1746713068191,0.23290203,99452.0,99451.0,0.374]
[1746713068349,0.20111479,99446.0,99444.0,0.34]
[1746713068534,0.0159,99445.0,99444.0,0.36033287]
[1746713068728,0.21953022,99445.0,99444.0,0.36033287]
[1746713068933,0.010055,99453.0,99448.0,0.34]
[1746713069161,0.21115929,99451.0,99448.0,0.34]
[1746713069935,0.21115929,99451.0,99448.0,0.5411099]
[1746713070128,0.22755929,99451.0,99448.0,0.5411099]
[1746713070326,0.21116156,99450.0,99448.0,0.34]
[1746713070532,0.22755929,99451.0,99448.0,0.54110938]
[1746713070733,0.22755936,99451.0,99448.0,0.34]
[1746713070995,0.22855936,99451.0,99448.0,0.34]
[1746713071179,0.2175081,99449.0,99448.0,0.34]
[1746713071376,0.0162,99447.0,99446.0,0.34]
[1746713071579,0.00251391,99449.0,99448.0,0.34]
[1746713071776,0.21116235,99450.0,99448.0,0.34]
[1746713071960,0.0162,99449.0,99448.0,0.34]
[1746713072156,0.2173081,99449.0,99448.0,0.34]
[1746713072372,0.20110218,99452.0,99448.0,0.54111012]
[1746713072724,0.20109604,99455.0,99450.0,0.20110608]
[1746713072884,0.01005449,99458.0,99452.0,0.0100551]
[1746713073091,0.22876028,99457.0,99454.0,0.201097]
[1746713073415,0.01005479,99455.0,99450.0,0.56576075]
[1746713074258,0.2171081,99449.0,99448.0,0.34]
[1746713075024,0.0164,99446.0,99444.0,0.36033287]
[1746713075231,0.0158,99445.0,99444.0,0.54111821]
[1746713075659,0.00251399,99446.0,99444.0,0.54111821]
[1746713076565,0.00251399,99446.0,99444.0,0.5411173]
[1746713076761,0.00251399,99446.0,99444.0,0.56082731]
[1746713076923,0.00251399,99446.0,99445.0,0.20111619]
[1746713077111,0.0100555,99448.0,99445.0,0.20111619]
[1746713077112,0.01811398,99447.0,99445.0,0.20111619]
[1746713077519,0.002,99446.0,99445.0,0.20111619]
[1746713077721,0.001,99446.0,99445.0,0.20111619]
[1746713077919,0.001,99446.0,99444.0,0.56082731]
[1746713078114,0.00351399,99446.0,99445.0,0.20111619]
[1746713078323,0.001,99446.0,99445.0,0.20111619]
[1746713078732,0.001,99447.0,99445.0,0.21691619]
[1746713079880,0.0100551,99452.0,99449.0,0.20110738]
[1746713080298,0.21115297,99454.0,99450.0,0.20110477]
[1746713080498,0.010055,99453.0,99450.0,0.20110477]
[1746713080702,0.0100551,99452.0,99449.0,0.20110738]
[1746713081553,0.010055,99453.0,99450.0,0.54110516]
[1746713081768,0.012055,99453.0,99450.0,0.54110516]
[1746713081988,0.002,99453.0,99450.0,0.54110516]
[1746713082195,0.0120551,99452.0,99448.0,0.34]
[1746713082458,0.012055,99453.0,99450.0,0.54110475]
[1746713082710,0.21315547,99453.0,99450.0,0.34]
[1746713082901,0.0161,99451.0,99450.0,0.34]
[1746713083324,0.21720406,99451.0,99450.0,0.34]
[1746713083521,0.23321619,99445.0,99444.0,0.01971001]
[1746713083722,0.21119536,99434.0,99431.0,0.34]
[1746713083922,0.0162,99432.0,99431.0,0.36001191]
[1746713085128,0.01871432,99432.0,99431.0,0.0204693]
[1746713086813,0.0162,99432.0,99431.0,0.0204693]
[1746713087023,0.0162,99432.0,99431.0,0.00045739]
[1746713087024,0.13518147,99432.0,99431.0,0.00045739]
[1746713087509,0.13618147,99432.0,99431.0,0.00045739]
[1746713087711,0.13618158,99432.0,99431.0,0.00045739]
[1746713088827,0.13818158,99432.0,99431.0,0.00045739]
[1746713090113,0.15973649,99432.0,99431.0,0.00045739]
[1746713090338,0.13818158,99432.0,99431.0,0.00045739]
[1746713093380,0.13566692,99432.0,99431.0,0.00045739]
[1746713093613,0.13818179,99432.0,99431.0,0.00045739]
[1746713094495,0.12238179,99432.0,99431.0,0.00045739]
[1746713094952,0.13828179,99432.0,99431.0,0.00045739]
[1746713096415,0.003,99432.0,99431.0,0.00045739]
[1746713096613,0.00551458,99432.0,99431.0,0.00045739]
[1746713098135,0.003,99432.0,99431.0,0.00045739]
[1746713098482,0.003,99432.0,99431.0,0.02081825]
[1746713098704,0.003,99432.0,99431.0,0.00045739]
[1746713099101,0.003,99432.0,99431.0,0.34045739]
[1746713099545,0.003,99432.0,99431.0,0.35555739]
[1746713099949,0.003,99432.0,99431.0,0.34045739]
[1746713100148,0.003,99432.0,99431.0,0.34799996]
[1746713100922,0.003,99432.0,99431.0,0.36319996]
[1746713101523,0.003,99432.0,99431.0,0.34799996]
[1746713102147,0.001,99432.0,99431.0,0.36319996]
[1746713102587,0.002,99432.0,99431.0,0.36319996]
[1746713103150,0.002,99432.0,99431.0,0.18216329]
[1746713103345,0.001,99432.0,99431.0,3.78185157]
[1746713103572,0.001,99432.0,99431.0,0.66890357]
[1746713103786,0.002,99432.0,99431.0,0.66890357]
[1746713103987,0.002,99432.0,99431.0,0.67826731]
[1746713104205,0.20214248,99432.0,99431.0,0.01690631]
[1746713104422,0.001,99432.0,99431.0,0.01690631]
[1746713104647,0.001,99432.0,99431.0,0.01790631]
[1746713104850,0.00251433,99433.0,99431.0,0.84523931]
[1746713105182,0.00251433,99433.0,99432.0,0.60469131]
[1746713105381,0.00251431,99434.0,99432.0,0.80583205]
[1746713105584,0.00251431,99434.0,99433.0,0.589798]
[1746713105796,0.21119444,99435.0,99433.0,0.59734057]
[1746713105992,0.21119444,99435.0,99434.0,0.553565]
[1746713106197,0.21119444,99435.0,99434.0,0.56110757]
[1746713106399,0.21119444,99435.0,99434.0,0.56915957]
[1746713107798,0.21219444,99435.0,99434.0,0.56915957]
[1746713108515,0.001,99435.0,99434.0,0.56915957]
[1746713108963,0.001,99435.0,99434.0,0.93382331]
[1746713109185,0.01005459,99457.0,99453.0,0.20109893]
[1746713109426,0.01005469,99456.0,99451.0,0.20110268]
[1746713109651,0.0025138,99455.0,99454.0,0.00754257]
[1746713109887,0.21114941,99456.0,99454.0,0.00754257]
[1746713110112,0.21114941,99456.0,99455.0,0.00754257]
[1746713111445,0.21414941,99456.0,99455.0,0.02805148]
[1746713112488,0.21614941,99456.0,99455.0,0.02805148]
[1746713113625,0.21614941,99456.0,99455.0,0.00754257]
[1746713114261,0.23184941,99456.0,99455.0,0.00754257]
[1746713114470,0.34851633,99456.0,99448.0,0.00754257]
[1746713114679,0.2168081,99449.0,99448.0,0.00754257]
[1746713114890,0.31747502,99449.0,99448.0,0.00754257]
[1746713115293,0.20111821,99444.0,99443.0,0.00754257]
[1746713115502,0.21903236,99444.0,99443.0,0.00754257]
[1746713115745,0.21651821,99444.0,99443.0,0.00754257]
[1746713115948,0.31718513,99444.0,99443.0,0.00754257]
[1746713116151,0.42745373,99444.0,99443.0,0.00754257]
[1746713116347,0.2011526,99427.0,99426.0,0.00754257]
[1746713116520,0.21906735,99427.0,99426.0,0.00754257]
[1746713116725,0.21906735,99427.0,99425.0,0.002]
[1746713116726,0.2011526,99427.0,99425.0,0.002]
[1746713116947,0.20366728,99427.0,99425.0,0.002]
[1746713117292,0.2011526,99427.0,99425.0,0.002]
[1746713117505,0.2031526,99427.0,99425.0,0.002]
[1746713117720,0.00251468,99426.0,99425.0,0.002]
[1746713117987,0.2051526,99427.0,99425.0,0.00954257]
[1746713118426,0.2051526,99427.0,99426.0,0.00754257]
[1746713118626,0.2031526,99427.0,99426.0,0.00754257]
[1746713119249,0.2031526,99427.0,99425.0,0.002]
[1746713119482,0.00251458,99426.0,99425.0,0.002]
[1746713119933,0.00351458,99426.0,99425.0,0.002]
[1746713120154,0.001,99426.0,99425.0,0.002]
[1746713120585,0.001,99426.0,99425.0,0.05567252]
[1746713120808,0.001,99426.0,99425.0,0.00954257]
[1746713121251,0.01005742,99429.0,99426.0,0.20115462]
[1746713121463,0.01005742,99429.0,99427.0,0.00754257]
[1746713121689,0.2011248,99441.0,99427.0,0.0176002]
[1746713121690,0.01005651,99438.0,99427.0,0.0176002]
[1746713121915,0.01005682,99435.0,99432.0,0.20114168]
[1746713122347,0.01005712,99432.0,99429.0,0.20114676]
[1746713122603,0.01005702,99433.0,99430.0,0.20114526]
[1746713122864,0.01005702,99433.0,99430.0,0.20870414]
[1746713123067,0.01005702,99433.0,99431.0,0.00755888]
[1746713123836,0.01005702,99433.0,99432.0,0.00755888]
[1746713124110,0.01105702,99433.0,99432.0,0.00755888]
[1746713124352,0.01257126,99433.0,99432.0,0.00755888]
[1746713124581,0.02757126,99433.0,99432.0,0.00755888]
[1746713124816,0.01257126,99433.0,99432.0,0.00755888]
[1746713125810,0.01357126,99433.0,99432.0,0.00755888]
[1746713125966,0.01257126,99433.0,99432.0,0.00755888]
[1746713126393,0.00451424,99433.0,99432.0,0.00755888]
[1746713126577,0.00251442,99433.0,99432.0,0.00755888]
[1746713126979,0.02021442,99433.0,99432.0,0.00755888]
[1746713127175,0.02121442,99433.0,99432.0,0.00755888]
[1746713127537,0.01005742,99429.0,99426.0,0.00755888]
[1746713127738,0.20366516,99428.0,99426.0,0.00755888]
[1746713128614,0.1181815,99427.0,99426.0,0.00755888]
[1746713128834,0.20115462,99426.0,99425.0,0.002]
[1746713129013,0.31702154,99426.0,99425.0,0.002]
[1746713129403,0.33292154,99426.0,99425.0,0.002]
[1746713130311,0.33352154,99426.0,99425.0,0.002]
[1746713130977,0.33452154,99426.0,99425.0,0.002]
[1746713132221,0.30282154,99426.0,99425.0,0.002]
[1746713132684,0.20415462,99426.0,99425.0,0.002]
[1746713132811,0.20115462,99426.0,99425.0,0.002]
[1746713133021,0.20466933,99426.0,99425.0,0.002]
[1746713133232,0.20515462,99426.0,99425.0,0.002]
[1746713133437,0.30582154,99426.0,99425.0,0.002]
[1746713133636,0.32222154,99426.0,99425.0,0.002]
[1746713134218,0.20515462,99426.0,99425.0,0.002]
[1746713137148,0.33732154,99426.0,99425.0,0.002]
[1746713138195,0.32122154,99426.0,99425.0,0.002]
[1746713139176,0.30582154,99426.0,99425.0,0.002]
[1746713139583,0.20515462,99426.0,99425.0,0.002]
[1746713143067,0.004,99426.0,99425.0,0.38840906]
[1746713143301,0.004,99426.0,99425.0,0.37270906]
[1746713143504,0.004,99426.0,99425.0,1.73258006]
[1746713143685,0.004,99426.0,99425.0,2.31970306]
[1746713143863,0.21120934,99428.0,99425.0,2.38573906]
[1746713144063,0.2011538,99427.0,99426.0,0.0321]
[1746713144269,0.20114887,99429.0,99427.0,0.0157]
[1746713144489,0.21120969,99428.0,99425.0,0.002]
[1746713145006,0.21120969,99428.0,99425.0,0.0178]
[1746713145217,0.20115454,99427.0,99425.0,0.0198]
[1746713145650,0.00251436,99426.0,99425.0,0.002]
[1746713145854,0.20115454,99427.0,99425.0,0.003]
[1746713146089,0.21120519,99430.0,99426.0,0.0162]
[1746713146266,0.20115336,99427.0,99426.0,0.0162]
[1746713146670,0.20115336,99427.0,99426.0,0.04215999]
[1746713146929,0.20115336,99427.0,99426.0,0.0162]
[1746713147914,0.20215336,99427.0,99426.0,0.0162]
[1746713148528,0.001,99427.0,99426.0,0.0162]
[1746713148772,0.001,99427.0,99426.0,0.0334]
[1746713150173,0.001,99427.0,99426.0,0.0172]
[1746713152101,0.001,99427.0,99426.0,0.3572]
[1746713154584,0.001,99427.0,99426.0,0.0172]
[1746713155966,0.21118698,99438.0,99435.0,0.34]
[1746713156193,0.20113401,99437.0,99435.0,0.34]
[1746713156391,0.01005641,99439.0,99436.0,0.2111911]
[1746713156624,0.20113262,99437.0,99435.0,0.0165]
[1746713156834,0.00045705,99444.0,99442.0,0.0165]
[1746713157006,0.20112023,99443.0,99441.0,0.34]
[1746713157504,0.01051296,99444.0,99441.0,0.34]
[1746713157748,0.01051296,99444.0,99441.0,0.3561]
[1746713157958,0.00045705,99444.0,99441.0,0.34]
[1746713158213,0.00045705,99444.0,99443.0,0.38604085]
[1746713158419,0.00045705,99444.0,99443.0,4.12924985]
[1746713158618,0.00045705,99444.0,99443.0,2.25321685]
[1746713158845,0.00045705,99444.0,99443.0,2.07308785]
[1746713159198,0.00045705,99444.0,99443.0,2.08898785]
[1746713159609,0.00045705,99444.0,99443.0,2.08998785]
[1746713159828,0.00045705,99444.0,99443.0,2.07408785]
[1746713160032,0.00045705,99444.0,99443.0,0.68743685]
[1746713160267,0.00045705,99444.0,99443.0,0.656996]
[1746713160470,0.01005641,99439.0,99434.0,0.02459777]
[1746713160677,0.01005661,99437.0,99436.0,0.34]
[1746713160881,0.01005661,99437.0,99436.0,0.536261]
[1746713161093,0.01257082,99437.0,99436.0,0.536261]
[1746713161221,0.04307082,99437.0,99436.0,0.34]
[1746713161423,0.02787082,99437.0,99436.0,0.34]
[1746713161626,0.01005722,99431.0,99428.0,0.34]
[1746713161841,0.01005702,99433.0,99428.0,0.55120655]
[1746713162068,0.01005651,99438.0,99435.0,0.21119308]
[1746713162245,0.20112832,99440.0,99436.0,0.34]
[1746713162466,0.01005611,99442.0,99436.0,0.34]
[1746713162665,0.01005631,99440.0,99436.0,0.01105671]
[1746713162899,0.01005641,99439.0,99436.0,0.342]
[1746713163101,0.01005641,99439.0,99436.0,0.34]
[1746713163329,0.01005631,99440.0,99436.0,0.34]
[1746713163508,0.01051296,99444.0,99439.0,0.20112832]
[1746713163831,0.20112513,99441.0,99439.0,0.0151]
[1746713164004,0.20112704,99440.0,99438.0,0.74]
[1746713165436,0.20113218,99438.0,99436.0,0.001]
[1746713165634,0.20113218,99438.0,99437.0,0.930788]
[1746713166365,0.2111769,99443.0,99440.0,0.20112567]
[1746713166748,0.2111769,99443.0,99438.0,0.36575651]
[1746713166749,0.21117933,99442.0,99438.0,0.55682895]
[1746713167278,0.21117933,99442.0,99439.0,0.20112797]
[1746713167679,0.01005621,99441.0,99438.0,0.55682895]
[1746713168282,0.21117651,99443.0,99439.0,0.20112707]
[1746713168703,0.21117862,99442.0,99439.0,0.20112707]
[1746713169264,0.2111807,99441.0,99438.0,0.55782895]
[1746713169673,0.2111807,99441.0,99438.0,0.55682895]
[1746713169887,0.01005611,99442.0,99440.0,0.20112612]
[1746713170221,0.01005601,99443.0,99440.0,0.20112612]
[1746713170413,0.01005621,99441.0,99438.0,0.54112895]
[1746713170806,0.01005621,99441.0,99439.0,0.001]
[1746713171202,0.21118076,99441.0,99439.0,0.001]
[1746713171409,0.21118076,99441.0,99438.0,0.54112895]
[1746713172021,0.21118076,99441.0,99438.0,0.54212895]
[1746713172804,0.01005621,99441.0,99439.0,0.20112825]
[1746713173004,0.21117868,99442.0,99439.0,0.20112825]
[1746713173650,0.21117923,99442.0,99440.0,0.34]
[1746713173860,0.01005611,99442.0,99440.0,0.34]
[1746713174232,0.21118036,99442.0,99440.0,0.34]
[1746713174653,0.20112428,99441.0,99440.0,0.34]
[1746713174858,0.2111784,99442.0,99439.0,0.34]
[1746713175076,0.20112428,99441.0,99440.0,0.001]
[1746713175243,0.2111784,99442.0,99440.0,0.001]
[1746713175455,0.2111784,99442.0,99439.0,0.34]
[1746713175658,0.01005601,99443.0,99440.0,0.2011263]
[1746713175887,0.00045705,99444.0,99443.0,0.20112023]
[1746713176090,0.00045705,99444.0,99443.0,0.54112023]
[1746713176323,0.00045705,99444.0,99443.0,3.72642123]
[1746713176492,0.00045705,99444.0,99443.0,4.08066723]
[1746713176857,0.00045705,99444.0,99443.0,2.37274023]
[1746713177270,0.19911199,99448.0,99446.0,0.34]
[1746713177524,0.0100556,99447.0,99446.0,0.34]
[1746713177719,0.21116775,99447.0,99446.0,0.34]
[1746713178051,0.0100554,99449.0,99446.0,0.34]
[1746713178265,0.0100552,99451.0,99444.0,0.20111632]
[1746713178445,0.0100555,99448.0,99443.0,0.34008956]
[1746713178650,0.0100553,99450.0,99444.0,0.20111794]
[1746713178984,0.001,99447.0,99446.0,0.54111333]
[1746713179426,0.002,99447.0,99446.0,0.54111333]
[1746713179639,0.002,99447.0,99446.0,0.34]
[1746713179847,0.001,99447.0,99446.0,0.34]
[1746713180051,0.20111821,99444.0,99443.0,8.956e-05]
[1746713180456,0.21116987,99446.0,99443.0,8.956e-05]
[1746713180457,0.21117117,99446.0,99444.0,0.34]
[1746713180662,0.21116815,99447.0,99444.0,0.34]
[1746713181088,0.02824296,99446.0,99444.0,0.34]
[1746713181298,0.03075694,99446.0,99444.0,0.34]
[1746713181464,0.01882864,99445.0,99443.0,0.20120792]
[1746713181635,0.01882864,99445.0,99444.0,0.34]
[1746713182437,0.00941432,99446.0,99444.0,0.54111672]
[1746713182820,0.0100557,99446.0,99443.0,8.956e-05]
[1746713182955,0.01356958,99447.0,99443.0,8.956e-05]
[1746713183138,0.01256958,99447.0,99443.0,8.956e-05]
[1746713183516,0.20111821,99444.0,99443.0,8.956e-05]
[1746713183662,0.2036323,99444.0,99443.0,8.956e-05]
[1746713184066,0.00251409,99444.0,99443.0,8.956e-05]
[1746713184395,0.01193032,99444.0,99442.0,0.20112204]
[1746713184606,0.00955324,99444.0,99442.0,0.20112204]
[1746713184809,0.00955324,99444.0,99442.0,0.21672204]
[1746713185011,0.00955324,99444.0,99443.0,0.0156]
[1746713185173,0.00013701,99444.0,99443.0,0.0156]
[1746713187389,0.0100554,99449.0,99445.0,0.34]
[1746713187759,0.0100554,99449.0,99444.0,0.20111821]
[1746713187760,0.0100554,99449.0,99447.0,0.34]
[1746713188554,0.21952401,99448.0,99447.0,0.34]
[1746713188795,0.21701012,99448.0,99447.0,0.34]
[1746713188986,0.0100556,99447.0,99441.0,0.34]
[1746713189208,0.01256968,99446.0,99443.0,0.34]
[1746713189730,0.00251398,99446.0,99445.0,0.34]
[1746713190470,0.00251396,99447.0,99445.0,0.34]
[1746713190671,0.20362767,99447.0,99445.0,0.34]
[1746713190881,0.21217108,99446.0,99443.0,0.34]
[1746713191192,0.00251403,99445.0,99443.0,0.34]
[1746713192356,0.20111944,99444.0,99442.0,0.34]
[1746713192566,0.20111944,99444.0,99420.0,0.36465617]
[1746713192567,0.21120672,99429.0,99425.0,0.203155]
[1746713192770,0.00251433,99428.0,99426.0,0.34]
[1746713192986,0.21120801,99429.0,99426.0,0.34]
[1746713193199,0.21120801,99429.0,99425.0,0.00245705]
[1746713193200,0.20115462,99426.0,99425.0,0.00245705]
[1746713193438,0.21372358,99428.0,99425.0,0.00245705]
[1746713193648,0.20115462,99426.0,99425.0,0.00245705]
[1746713194098,0.21665462,99426.0,99425.0,0.00245705]
[1746713194700,0.21665462,99426.0,99425.0,0.00445705]
[1746713195163,0.20115462,99426.0,99425.0,0.00445705]
[1746713195371,0.20366926,99426.0,99425.0,0.00445705]
[1746713195546,0.21876926,99426.0,99425.0,0.00445705]
[1746713195765,0.21625462,99426.0,99425.0,0.00445705]
[1746713195968,0.21725462,99426.0,99425.0,0.00445705]
[1746713196391,0.20215462,99426.0,99425.0,0.00245705]
[1746713196737,0.20315462,99426.0,99425.0,0.00245705]
[1746713197592,0.002,99426.0,99425.0,0.00245705]
[1746713198340,0.00451455,99426.0,99425.0,0.00245705]
[1746713198985,0.00451455,99426.0,99425.0,0.34245705]
[1746713199135,0.002,99426.0,99425.0,0.35855705]
[1746713199336,0.002,99426.0,99425.0,0.34245705]
[1746713199916,0.002,99426.0,99425.0,0.35835705]
[1746713200574,0.002,99426.0,99425.0,0.34245705]
[1746713201299,0.002,99426.0,99425.0,0.00245705]
[1746713201465,0.00451451,99426.0,99425.0,0.00245705]
[1746713202167,0.002,99426.0,99425.0,0.01855705]
[1746713202767,0.002,99426.0,99425.0,0.03425705]
[1746713203517,0.00251437,99431.0,99430.0,0.20114653]
[1746713203669,0.00251435,99432.0,99430.0,0.20114653]
[1746713203881,0.01005671,99436.0,99433.0,0.2011391]
[1746713204082,0.01005671,99436.0,99434.0,0.0162]
[1746713204284,0.21119134,99436.0,99434.0,0.0162]
[1746713204594,0.01005692,99434.0,99431.0,0.54114398]
[1746713204797,0.00251433,99433.0,99431.0,0.54114398]
[1746713204998,0.00251433,99433.0,99431.0,0.34]
[1746713205396,0.00251433,99433.0,99431.0,0.54114375]
[1746713205636,0.00251433,99433.0,99429.0,0.34]
[1746713205836,0.00251433,99433.0,99432.0,0.34]
[1746713206038,0.01257114,99435.0,99433.0,0.20114046]
[1746713206291,0.21319134,99436.0,99434.0,0.20113784]
[1746713206292,0.002,99436.0,99434.0,0.20113784]
[1746713206488,0.20112275,99442.0,99438.0,0.20112952]
[1746713206801,0.21117567,99444.0,99434.0,0.01005692]
[1746713206949,0.01005631,99440.0,99437.0,0.20113091]
[1746713207149,0.20112481,99441.0,99434.0,0.01005692]
[1746713207357,0.01005641,99439.0,99437.0,0.20113133]
[1746713207552,0.01005611,99442.0,99436.0,0.20113292]
[1746713207740,0.21117984,99442.0,99438.0,0.20113004]
[1746713207954,0.21117984,99442.0,99439.0,0.34]
[1746713208154,0.20112488,99441.0,99439.0,0.34]
[1746713208984,0.002,99442.0,99441.0,0.34]
[1746713209331,0.002,99442.0,99441.0,0.3554]
[1746713209742,0.01005591,99444.0,99442.0,0.20112226]
[1746713209948,0.20112124,99443.0,99441.0,0.3554]
[1746713210150,0.20112124,99443.0,99438.0,0.20112978]
[1746713210151,0.01257005,99443.0,99439.0,0.54112775]
[1746713210363,0.00251404,99443.0,99441.0,0.34]
[1746713210578,0.00251404,99443.0,99441.0,0.54112391]
[1746713210787,0.002,99442.0,99441.0,0.55612391]
[1746713210992,0.21115644,99453.0,99449.0,0.20110755]
[1746713210993,0.21115757,99452.0,99449.0,0.20110755]
[1746713211245,0.01005489,99454.0,99450.0,0.20110593]
[1746713211459,0.21115182,99455.0,99451.0,0.20110339]
[1746713211664,0.01005358,99467.0,99464.0,0.20107728]
[1746713211880,0.1107203,99469.0,99465.0,0.02010773]
[1746713212093,0.21563361,99470.0,99461.0,0.01005419]
[1746713212292,0.00451367,99470.0,99464.0,0.2010765]
[1746713212510,0.002,99470.0,99468.0,0.20106848]
[1746713212739,0.002,99470.0,99469.0,0.02585961]
[1746713213273,0.002,99470.0,99469.0,0.04115961]
[1746713214454,0.20306564,99470.0,99469.0,0.02585961]
[1746713214927,0.004,99470.0,99469.0,0.02585961]
[1746713215310,0.004,99470.0,99469.0,0.04235961]
[1746713215496,0.005,99470.0,99469.0,0.04235961]
[1746713215941,0.005,99470.0,99469.0,0.02585961]
[1746713215942,0.004,99470.0,99469.0,0.02585961]
[1746713216580,0.006,99470.0,99469.0,0.02585961]
[1746713217642,0.00851343,99470.0,99469.0,0.02585961]
[1746713221892,0.20957907,99470.0,99469.0,0.02585961]
[1746713222097,0.20106766,99469.0,99468.0,0.01624261]
[1746713222443,0.010055,99453.0,99447.0,0.0163]
[1746713222664,0.00251386,99452.0,99450.0,0.34]
[1746713222862,0.20110406,99451.0,99450.0,0.34]
[1746713223000,0.0025139,99451.0,99450.0,0.34]
[1746713223420,0.0025139,99451.0,99450.0,0.35661779]
[1746713224468,0.0025139,99451.0,99450.0,0.35861779]
[1746713225188,0.0180139,99451.0,99450.0,0.004]
[1746713225411,0.0025139,99451.0,99450.0,0.004]
[1746713226024,0.0025139,99451.0,99450.0,0.002]
[1746713226387,0.20110608,99450.0,99448.0,0.01640479]
[1746713226612,0.00251399,99449.0,99447.0,0.34]
[1746713227229,0.00251399,99449.0,99447.0,0.3565264]
[1746713227434,0.20362232,99449.0,99447.0,0.3565264]
[1746713228231,0.20362232,99449.0,99448.0,0.001]
[1746713228632,0.20362232,99449.0,99430.0,10.0]
[1746713228633,0.20114451,99431.0,99430.0,10.0]
[1746713228884,0.31962581,99431.0,99430.0,10.00045705]
[1746713229083,0.31711143,99431.0,99430.0,10.00045705]
[1746713229282,0.33301143,99431.0,99430.0,10.00045705]
[1746713229892,0.33501143,99431.0,99430.0,10.00045705]
[1746713230592,0.33701143,99431.0,99430.0,10.00045705]
[1746713231362,0.33501143,99431.0,99430.0,10.00045705]
[1746713231838,0.33301143,99431.0,99430.0,10.00045705]
[1746713232409,0.33501143,99431.0,99430.0,10.00045705]
[1746713232811,0.33501143,99431.0,99430.0,10.00145705]
[1746713233012,0.31911143,99431.0,99430.0,10.00045705]
[1746713233243,0.31711143,99431.0,99430.0,10.00045705]
[1746713235836,0.31711143,99431.0,99430.0,10.06579857]
[1746713236050,0.20114248,99432.0,99430.0,10.00045705]
[1746713236051,0.20114348,99432.0,99430.0,10.00045705]
[1746713236953,0.10066692,99431.0,99430.0,10.00045705]
[1746713238857,0.10066692,99431.0,99430.0,9.79429481]
[1746713239248,0.10318144,99431.0,99430.0,9.79429481]
[1746713239483,0.11838144,99431.0,99430.0,9.79429481]
[1746713240107,0.11586692,99431.0,99430.0,9.79429481]
[1746713240271,0.11586692,99431.0,99430.0,9.79529481]
[1746713240682,0.10066692,99431.0,99430.0,9.79529481]
[1746713241679,0.10318152,99431.0,99430.0,9.79529481]
[1746713242975,0.10066692,99431.0,99430.0,9.79529481]
[1746713243424,0.21118594,99439.0,99431.0,0.01005722]
[1746713243629,0.21118594,99439.0,99432.0,0.0153]
[1746713243630,0.01005692,99434.0,99432.0,0.0153]
[1746713243836,0.21119702,99434.0,99432.0,0.0153]
[1746713244055,0.20114248,99432.0,99431.0,0.34]
[1746713245741,0.01005671,99436.0,99431.0,0.34]
[1746713245937,0.21117887,99442.0,99439.0,0.20112714]
[1746713246172,0.20113298,99437.0,99434.0,0.0164]
[1746713246349,0.21118959,99437.0,99434.0,0.0164]
[1746713246708,0.20113642,99435.0,99434.0,0.0164]
[1746713247342,0.21219003,99437.0,99434.0,0.0164]
[1746713247519,0.21119003,99437.0,99434.0,0.0164]
[1746713247715,0.21119003,99437.0,99431.0,0.5411434]
[1746713247716,0.20111931,99444.0,99440.0,0.20112429]
[1746713247985,0.21118261,99440.0,99439.0,0.0156]
[1746713248738,0.21118261,99440.0,99434.0,0.54113803]
[1746713248739,0.01005591,99444.0,99436.0,0.01005671]
[1746713248940,0.01005611,99442.0,99441.0,0.0161]
[1746713249162,0.0100554,99449.0,99441.0,0.0161]
[1746713249163,0.0100554,99449.0,99442.0,0.02615611]
[1746713249365,0.21117175,99446.0,99442.0,0.34]
[1746713249641,0.00251404,99445.0,99444.0,0.0156]
[1746713249843,0.21117175,99446.0,99444.0,0.0156]
[1746713250181,0.0100556,99447.0,99444.0,0.0159]
[1746713250403,0.01256973,99446.0,99445.0,0.0152]
[1746713252111,0.01005601,99443.0,99442.0,0.34]
[1746713252339,0.01257005,99443.0,99440.0,0.55702604]
[1746713252786,0.21116999,99446.0,99443.0,0.0159]
[1746713253010,0.01256984,99445.0,99444.0,0.0155]
[1746713254090,0.0100554,99449.0,99444.0,0.01005591]
[1746713254322,0.20110197,99453.0,99451.0,0.0152]
[1746713254536,0.08034024,99496.0,99467.0,0.34]
[1746713254743,0.3622,99499.0,99473.0,0.01005297]
[1746713254744,0.01005227,99480.0,99473.0,0.01005297]
[1746713254919,0.01005227,99480.0,99471.0,0.0152]
[1746713254920,0.01005105,99492.0,99486.0,0.34]
[1746713255156,0.01005116,99491.0,99486.0,0.54103282]
[1746713255367,0.2110786,99489.0,99487.0,0.0152]
[1746713255584,0.20102983,99488.0,99487.0,0.0152]
[1746713255757,0.2110786,99489.0,99487.0,0.0152]
[1746713256838,0.001,99488.0,99487.0,0.0152]
[1746713257042,0.2120786,99489.0,99487.0,0.0152]
[1746713257238,0.2130786,99489.0,99487.0,0.0152]
[1746713258418,0.001,99489.0,99488.0,0.20102926]
[1746713258641,0.001,99489.0,99488.0,0.23382926]
[1746713259587,0.01005116,99491.0,99488.0,0.23382926]
[1746713259792,0.00013714,99492.0,99490.0,0.0161]
[1746713260140,0.00013714,99492.0,99491.0,0.0161]
[1746713260512,0.00013714,99492.0,99491.0,0.4161]
[1746713260872,0.00113714,99492.0,99491.0,0.4161]
[1746713261936,0.00213714,99492.0,99491.0,0.4161]
[1746713262315,0.00113714,99492.0,99491.0,0.4161]
[1746713262517,0.00013714,99492.0,99491.0,0.4161]
[1746713262745,0.00313714,99492.0,99491.0,0.4161]
[1746713263417,0.00313714,99492.0,99484.0,0.4183]
[1746713263418,0.01005156,99487.0,99485.0,0.34]
[1746713263716,0.211084,99487.0,99485.0,0.34]
[1746713264014,0.01005156,99487.0,99486.0,0.920434]
[1746713264174,0.01005136,99489.0,99487.0,0.34]
[1746713264395,0.21108013,99489.0,99487.0,0.34]
[1746713265218,0.01005156,99487.0,99486.0,0.34]
[1746713266245,0.20103331,99486.0,99485.0,0.34]
[1746713267385,0.21208487,99487.0,99485.0,0.54103492]
[1746713267386,0.001,99487.0,99485.0,0.54103492]
[1746713267530,0.01005146,99488.0,99486.0,0.0166]
[1746713267732,0.21108155,99488.0,99486.0,0.0166]
[1746713268548,0.01205075,99495.0,99489.0,0.20102518]
[1746713268706,0.002,99495.0,99490.0,0.21742333]
[1746713268908,0.01205075,99495.0,99491.0,0.0155]